bitfinex/quotes_SOLUSD_20230102
["timestamp","ask_amount","ask_price","bid_price","bid_amount"]
[1672626231193,99.5493,9.8839,9.875,45.80730786]
[1672626231400,99.5493,9.8839,9.8753,30.0]
[1672626231620,23.5293,9.8838,9.8754,30.0]
[1672626231847,76.02,9.8837,9.8755,20.0]
[1672626232037,76.02,9.8837,9.8756,30.0]
[1672626232243,24.3555,9.8836,9.8758,30.0]
[1672626232453,76.02,9.8835,9.8761,30.0]
[1672626232679,76.02,9.8835,9.8762,30.0]
[1672626233000,100.3755,9.8835,9.8762,30.0]
[1672626233202,413.10247542,9.8835,9.8762,30.0]
[1672626233397,413.10247542,9.8835,9.8765,30.0]
[1672626233838,413.10247542,9.8835,9.8766,30.0]
[1672626234049,337.08247542,9.8835,9.8766,30.0]
[1672626234242,76.02,9.8834,9.8766,30.0]
[1672626234667,388.74697542,9.8834,9.8766,30.0]
[1672626236666,388.74697542,9.8834,9.8758,30.0]
[1672626236876,30.0,9.8833,9.876,30.0]
[1672626237204,76.02,9.8832,9.876,30.0]
[1672626237517,388.74697542,9.8833,9.876,30.0]
[1672626238038,388.74697542,9.8833,9.8761,30.0]
[1672626238242,388.74697542,9.8833,9.8765,30.0]
[1672626240351,388.74697542,9.8833,9.8766,30.0]
[1672626240667,388.74697542,9.8833,9.877,30.0]
[1672626242137,388.74697542,9.8833,9.8771,30.0]
[1672626242351,388.74697542,9.8833,9.8773,30.0]
[1672626242764,388.74697542,9.8833,9.8771,30.0]
[1672626247061,388.74697542,9.8833,9.8766,30.0]
[1672626248841,388.74697542,9.8833,9.8767,30.0]
[1672626249057,388.74697542,9.8833,9.8768,30.0]
[1672626251479,312.72697542,9.8833,9.8768,30.0]
[1672626251909,76.02,9.8832,9.8768,30.0]
[1672626252339,312.72697542,9.8832,9.8768,45.80730786]
[1672626252664,312.72697542,9.8832,9.877,30.0]
[1672626257594,312.72697542,9.8832,9.8772,30.0]
[1672626257804,312.72697542,9.8832,9.8773,20.0]
[1672626257995,312.72697542,9.8832,9.8774,30.0]
[1672626258204,312.72697542,9.8832,9.8775,50.0]
[1672626258409,312.72697542,9.8832,9.8776,30.0]
[1672626258735,312.72697542,9.8832,9.8778,30.0]
[1672626259261,312.72697542,9.8832,9.878,30.0]
[1672626259676,312.72697542,9.8832,9.8782,30.0]
[1672626259903,312.72697542,9.8832,9.8784,30.0]
[1672626260304,312.72697542,9.8832,9.8786,30.0]
[1672626260741,312.72697542,9.8832,9.8788,30.0]
[1672626261147,312.72697542,9.8832,9.879,30.0]
[1672626261361,312.72697542,9.8832,9.8792,30.0]
[1672626261567,312.72697542,9.8832,9.8793,20.0]
[1672626261811,312.72697542,9.8832,9.8794,30.0]
[1672626262128,312.72697542,9.8832,9.8796,30.0]
[1672626262443,312.72697542,9.8832,9.8797,20.0]
[1672626262655,312.72697542,9.8832,9.8798,30.0]
[1672626262866,312.72697542,9.8832,9.88,30.0]
[1672626263184,312.72697542,9.8832,9.8802,30.0]
[1672626263387,312.72697542,9.8832,9.8803,20.0]
[1672626263612,312.72697542,9.8832,9.8804,30.0]
[1672626263911,312.72697542,9.8832,9.8806,30.0]
[1672626264128,312.72697542,9.8832,9.8808,30.0]
[1672626264333,312.72697542,9.8832,9.8809,20.0]
[1672626264526,312.72697542,9.8832,9.881,30.0]
[1672626264737,312.72697542,9.8832,9.8811,20.0]
[1672626264949,312.72697542,9.8832,9.8812,30.0]
[1672626265160,312.72697542,9.8832,9.8814,30.0]
[1672626265478,312.72697542,9.8832,9.8815,20.0]
[1672626265893,312.72697542,9.8832,9.8811,84.6265359]
[1672626300593,343.60897995,9.8832,9.8811,84.6265359]
[1672626301965,343.60897995,9.8832,9.87,5.8]
[1672626302184,123.3912,9.8831,9.8768,30.0]
[1672626302387,30.0,9.883,9.8768,30.0]
[1672626302594,76.03,9.8829,9.8768,30.0]
[1672626302811,30.0,9.8828,9.8768,30.0]
[1672626303014,30.0,9.8826,9.8768,30.0]
[1672626303245,76.03,9.8825,9.8733,15.80730786]
[1672626303451,99.421,9.8825,9.8738,30.0]
[1672626303650,30.0,9.8824,9.8738,30.0]
[1672626303861,76.03,9.8823,9.8739,20.0]
[1672626304082,30.0,9.8822,9.874,30.0]
[1672626304288,76.03,9.8821,9.8741,20.0]
[1672626304499,368.33897995,9.8823,9.8743,30.0]
[1672626304500,76.03,9.8822,9.8743,30.0]
[1672626304718,24.73,9.882,9.8743,30.0]
[1672626304909,76.03,9.8819,9.8744,20.0]
[1672626305127,30.0,9.8818,9.8745,30.0]
[1672626305447,76.03,9.8817,9.8748,30.0]
[1672626305862,76.03,9.8817,9.8749,20.0]
[1672626306072,343.60897995,9.8817,9.8749,20.0]
[1672626306288,76.04,9.8816,9.8749,20.0]
[1672626306703,419.64897995,9.8816,9.875,30.0]
[1672626306911,419.64897995,9.8816,9.8751,20.0]
[1672626311758,419.64897995,9.8816,9.8749,20.0]
[1672626312076,419.64897995,9.8816,9.875,30.0]
[1672626312289,419.64897995,9.8816,9.8751,20.0]
[1672626316393,419.64897995,9.8816,9.8746,20.0]
[1672626317020,419.64897995,9.8816,9.8748,30.0]
[1672626317230,419.64897995,9.8816,9.8749,20.0]
[1672626318068,419.64897995,9.8816,9.875,30.0]
[1672626318267,419.64897995,9.8816,9.8751,20.0]
[1672626320682,343.60897995,9.8816,9.8751,20.0]
[1672626320994,343.60897995,9.8816,9.8752,30.0]
[1672626321330,343.60897995,9.8816,9.8753,20.0]
[1672626324799,76.04,9.8815,9.8753,20.0]
[1672626325408,239.85214106,9.8815,9.8753,20.0]
[1672626325732,343.60897995,9.8815,9.8753,20.0]
[1672626326271,343.60897995,9.8815,9.8746,20.0]
[1672626326488,343.60897995,9.8815,9.8748,30.0]
[1672626326792,343.60897995,9.8815,9.8749,20.0]
[1672626327529,343.60897995,9.8815,9.875,30.0]
[1672626327742,343.60897995,9.8815,9.8751,20.0]
[1672626327934,343.60897995,9.8815,9.8752,30.0]
[1672626328354,343.60897995,9.8815,9.8754,30.0]
[1672626328566,343.60897995,9.8815,9.8755,20.0]
[1672626330352,343.60897995,9.8815,9.8741,20.0]
[1672626330567,343.60897995,9.8815,9.8756,15.80730786]
[1672626330788,76.04,9.8814,9.8758,30.0]
[1672626331192,343.60897995,9.8815,9.8759,15.80730786]
[1672626331402,76.03,9.8818,9.8759,15.80730786]
[1672626331627,343.60897995,9.8814,9.8759,15.80730786]
[1672626333099,343.60897995,9.8814,9.876,12.08471037]
[1672626333512,343.60897995,9.8814,9.8761,30.0]
[1672626337020,343.60897995,9.8814,9.8762,12.08201206]
[1672626342062,343.60897995,9.8814,9.8758,30.0]
[1672626342689,343.60897995,9.8814,9.8717,51.19555581]
[1672626343020,106.04,9.8813,9.8759,12.08605957]
[1672626343237,153.5139,9.8813,9.8759,12.08605957]
[1672626343619,497.12287995,9.8813,9.8759,12.08605957]
[1672626344057,497.12287995,9.8813,9.8743,30.0]
[1672626344249,497.12287995,9.8813,9.8744,20.0]
[1672626344881,497.12287995,9.8813,9.872,20.0]
[1672626345100,24.026,9.8812,9.8721,30.0]
[1672626345317,76.04,9.8811,9.8726,30.0]
[1672626345525,30.0,9.881,9.8726,30.0]
[1672626345870,76.04,9.8809,9.8727,50.0]
[1672626346252,22.5943,9.8808,9.8727,50.0]
[1672626346476,76.04,9.8807,9.8732,30.0]
[1672626346789,76.04,9.8807,9.8733,20.0]
[1672626347052,98.6343,9.8807,9.8733,20.0]
[1672626347206,411.36127542,9.8807,9.8733,20.0]
[1672626347408,411.36127542,9.8807,9.8735,30.0]
[1672626347857,411.36127542,9.8807,9.8736,20.0]
[1672626348168,411.36127542,9.8807,9.8737,30.0]
[1672626348354,411.36127542,9.8807,9.8738,20.0]
[1672626348686,411.36127542,9.8807,9.8739,30.0]
[1672626348903,411.36127542,9.8807,9.874,50.0]
[1672626349435,411.36127542,9.8807,9.8742,30.0]
[1672626349436,5.83,9.88,9.8742,30.0]
[1672626349677,76.05,9.8799,9.8742,30.0]
[1672626349837,30.0,9.8798,9.8743,20.0]
[1672626350074,30.0,9.8796,9.8743,20.0]
[1672626350262,76.05,9.8795,9.8743,20.0]
[1672626350459,30.0,9.8794,9.8742,20.0]
[1672626350676,30.0,9.8792,9.8742,20.0]
[1672626350877,76.05,9.8791,9.8742,20.0]
[1672626351086,30.0,9.879,9.8742,20.0]
[1672626351311,30.0,9.8788,9.8742,20.0]
[1672626351525,76.06,9.8787,9.8742,20.0]
[1672626351740,30.0,9.8786,9.8742,20.0]
[1672626351974,30.0,9.8784,9.8742,20.0]
[1672626352258,76.06,9.8783,9.8742,20.0]
[1672626353091,30.0,9.8782,9.8742,20.0]
[1672626353295,76.06,9.8781,9.8742,20.0]
[1672626353937,30.0,9.878,9.8743,12.10245664]
[1672626354147,30.0,9.8778,9.8743,12.10245664]
[1672626354359,76.07,9.8777,9.8744,20.0]
[1672626354684,30.0,9.8776,9.8716,133.0096]
[1672626354873,76.07,9.8775,9.8744,12.101107]
[1672626355208,30.0,9.8774,9.8744,12.101107]
[1672626355528,30.0,9.8772,9.8716,133.0096]
[1672626355751,76.07,9.8771,9.8716,133.0096]
[1672626356066,30.0,9.877,9.8716,133.0096]
[1672626356232,30.0,9.877,9.8717,20.0]
[1672626356233,76.07,9.8769,9.8717,20.0]
[1672626356444,30.0,9.8768,9.8717,20.0]
[1672626356657,76.07,9.8767,9.8717,20.0]
[1672626356897,30.0,9.8766,9.8717,20.0]
[1672626357076,76.07,9.8765,9.8717,20.0]
[1672626357294,30.0,9.8764,9.8717,20.0]
[1672626358023,198.26575585,9.8764,9.8717,20.0]
[1672626358883,168.26575585,9.8764,9.8717,20.0]
[1672626360781,30.0,9.8763,9.8717,20.0]
[1672626361591,198.26575585,9.8763,9.8717,20.0]
[1672626364436,168.26575585,9.8763,9.8717,20.0]
[1672626365696,30.0,9.8762,9.8717,20.0]
[1672626366330,198.26575585,9.8762,9.8717,20.0]
[1672626367463,168.26575585,9.8762,9.8717,20.0]
[1672626375351,30.0,9.8761,9.8717,20.0]
[1672626375772,30.0,9.8778,9.8717,20.0]
[1672626375980,168.26575585,9.8761,9.8717,20.0]
[1672626378409,30.0,9.876,9.8717,20.0]
[1672626379020,58.69120084,9.876,9.8717,20.0]
[1672626379251,168.26575585,9.876,9.8717,20.0]
[1672626385128,30.0,9.8759,9.8717,20.0]
[1672626385549,198.26575585,9.8759,9.8717,20.0]
[1672626385761,198.26575585,9.8759,9.8718,20.0]
[1672626385972,198.26575585,9.8759,9.8706,20.0]
[1672626387018,30.0,9.8758,9.8706,20.0]
[1672626387432,109.57455501,9.8758,9.8706,20.0]
[1672626387645,30.0,9.8757,9.8706,20.0]
[1672626388266,198.26575585,9.8757,9.8706,20.0]
[1672626388478,30.0,9.8755,9.86,5.84]
[1672626388687,30.0,9.8755,9.8627,30.0]
[1672626388688,76.08,9.8754,9.8627,30.0]
[1672626388902,30.0,9.8753,9.8628,20.0]
[1672626389120,30.0,9.8751,9.8629,30.0]
[1672626389336,76.09,9.875,9.863,20.0]
[1672626389563,30.0,9.8749,9.863,20.0]
[1672626389775,76.09,9.8748,9.863,20.0]
[1672626389989,30.0,9.8747,9.8631,117.9123]
[1672626390198,30.0,9.8745,9.8632,20.0]
[1672626390411,76.09,9.8744,9.8632,20.0]
[1672626390602,30.0,9.8743,9.8633,117.9123]
[1672626390932,30.0,9.8741,9.8634,20.0]
[1672626391135,30.0,9.8739,9.8635,30.0]
[1672626391353,76.1,9.8738,9.8636,20.0]
[1672626391564,30.0,9.8737,9.8636,20.0]
[1672626391781,30.0,9.8735,9.8636,20.0]
[1672626391973,76.1,9.8734,9.8636,20.0]
[1672626392301,30.0,9.8733,9.8636,20.0]
[1672626392506,76.1,9.8732,9.8636,20.0]
[1672626392717,30.0,9.8731,9.8636,20.0]
[1672626392927,76.1,9.873,9.8636,20.0]
[1672626393123,30.0,9.8729,9.8636,20.0]
[1672626393332,76.1,9.8728,9.8636,20.0]
[1672626393551,30.0,9.8727,9.8637,30.0]
[1672626393757,76.1,9.8726,9.8638,20.0]
[1672626394188,30.0,9.8725,9.8638,20.0]
[1672626394391,76.11,9.8724,9.8638,20.0]
[1672626394601,30.0,9.8723,9.8638,20.0]
[1672626394806,76.11,9.8722,9.8638,20.0]
[1672626395013,30.0,9.8721,9.8638,20.0]
[1672626395222,76.11,9.872,9.8638,20.0]
[1672626395432,30.0,9.8719,9.8638,20.0]
[1672626395664,76.11,9.8718,9.8638,20.0]
[1672626395854,30.0,9.8717,9.8636,20.0]
[1672626396068,76.11,9.8716,9.8636,20.0]
[1672626396282,99.5413,9.8716,9.8636,20.0]
[1672626396695,267.80705585,9.8716,9.8637,30.0]
[1672626396918,23.4313,9.8715,9.8638,20.0]
[1672626397110,76.11,9.8714,9.8638,20.0]
[1672626397320,30.0,9.8713,9.8638,20.0]
[1672626397536,30.0,9.8711,9.8638,20.0]
[1672626397754,76.12,9.871,9.8636,20.0]
[1672626397977,5.83,9.87,9.8636,20.0]
[1672626398176,76.13,9.8699,9.8636,20.0]
[1672626398376,30.0,9.8698,9.8636,20.0]
[1672626398587,30.0,9.8696,9.8636,20.0]
[1672626398806,76.13,9.8695,9.8636,20.0]
[1672626399016,30.0,9.8694,9.8636,20.0]
[1672626399229,76.13,9.8693,9.8636,20.0]
[1672626399447,30.0,9.8692,9.8636,20.0]
[1672626399656,76.13,9.8691,9.8636,20.0]
[1672626401862,76.13,9.8691,9.8637,30.0]
[1672626402076,75.51440322,9.8766,9.8637,30.0]
[1672626402077,76.13,9.8699,9.8638,20.0]
[1672626402274,76.12,9.8702,9.8638,20.0]
[1672626402811,76.12,9.8702,9.8636,20.0]
[1672626403001,30.0,9.8701,9.8636,20.0]
[1672626403213,76.12,9.87,9.8636,20.0]
[1672626403642,76.12,9.8702,9.8636,20.0]
[1672626403855,30.0,9.8701,9.8636,20.0]
[1672626404058,76.12,9.87,9.8636,20.0]
[1672626404268,30.0,9.8699,9.8636,20.0]
[1672626404488,76.13,9.8698,9.8636,20.0]
[1672626405422,30.0,9.8697,9.8636,20.0]
[1672626405627,76.13,9.8696,9.8636,20.0]
[1672626405852,30.0,9.8697,9.8636,20.0]
[1672626406060,76.13,9.8696,9.8636,20.0]
[1672626407221,76.12,9.87,9.8636,20.0]
[1672626407432,76.12,9.8702,9.8636,20.0]
[1672626410478,76.12,9.8702,9.8637,30.0]
[1672626410795,76.12,9.8702,9.8638,20.0]
[1672626411197,76.12,9.8702,9.8635,114.0607]
[1672626411198,76.12,9.8711,9.8637,30.0]
[1672626411423,76.12,9.8711,9.8639,30.0]
[1672626411827,76.12,9.8711,9.864,20.0]
[1672626413103,76.12,9.8702,9.864,20.0]
[1672626413635,76.12,9.8702,9.8641,30.0]
[1672626413845,76.12,9.8702,9.8642,20.0]
[1672626414789,76.12,9.8702,9.8637,20.0]
[1672626415421,76.12,9.8702,9.8636,20.0]
[1672626416067,76.12,9.8702,9.8637,30.0]
[1672626416277,76.12,9.8702,9.8638,20.0]
[1672626416472,76.12,9.8702,9.8639,30.0]
[1672626416682,76.12,9.8702,9.864,20.0]
[1672626420263,76.12,9.8702,9.8641,30.0]
[1672626420476,76.12,9.8702,9.8642,20.0]
[1672626420696,76.12,9.8702,9.8643,30.0]
[1672626420912,76.12,9.8711,9.8645,30.0]
[1672626421099,76.12,9.8711,9.8646,20.0]
[1672626424386,76.11,9.8721,9.8646,20.0]
[1672626425719,76.11,9.8721,9.8644,20.0]
[1672626425935,76.12,9.8711,9.8644,20.0]
[1672626426677,76.12,9.8711,9.8645,30.0]
[1672626426884,76.12,9.8711,9.8646,20.0]
[1672626427146,30.0,9.8739,9.8647,30.0]
[1672626427311,76.11,9.8721,9.8648,20.0]
[1672626428356,76.11,9.8721,9.8649,30.0]
[1672626428687,846.70477286,9.876,9.865,15.80730786]
[1672626428892,30.0,9.8827,9.8652,30.0]
[1672626429213,30.0,9.8825,9.8653,56.3753991]
[1672626429437,30.0,9.8823,9.8654,30.0]
[1672626429620,76.03,9.8822,9.8654,99.99954178]
[1672626429825,30.0,9.8821,9.8656,30.0]
[1672626430040,30.0,9.8819,9.8658,30.0]
[1672626430239,76.03,9.8818,9.8659,20.0]
[1672626430461,30.0,9.8817,9.866,30.0]
[1672626430686,30.0,9.8815,9.8662,30.0]
[1672626430907,76.04,9.8814,9.8664,30.0]
[1672626431125,30.0,9.8813,9.8664,30.0]
[1672626431432,30.0,9.8811,9.8666,30.0]
[1672626431624,76.04,9.881,9.8668,30.0]
[1672626431841,30.0,9.8809,9.8669,20.0]
[1672626432052,30.0,9.8807,9.867,30.0]
[1672626432267,30.0,9.8805,9.8672,30.0]
[1672626432465,76.04,9.8804,9.8672,30.0]
[1672626432682,30.0,9.8803,9.8674,30.0]
[1672626432883,30.0,9.8801,9.8676,30.0]
[1672626433097,76.05,9.88,9.8677,20.0]
[1672626433304,30.0,9.8799,9.8678,30.0]
[1672626433536,30.0,9.8797,9.8678,45.80730786]
[1672626433747,76.05,9.8796,9.868,30.0]
[1672626433955,30.0,9.8795,9.868,30.0]
[1672626434144,30.0,9.8793,9.8682,30.0]
[1672626434358,30.0,9.8791,9.8684,30.0]
[1672626434587,76.06,9.879,9.8684,30.0]
[1672626434792,30.0,9.8789,9.8686,30.0]
[1672626435002,30.0,9.8787,9.8687,20.0]
[1672626435201,30.0,9.8785,9.8688,30.0]
[1672626435423,76.06,9.8784,9.869,30.0]
[1672626435623,30.0,9.8783,9.869,30.0]
[1672626435827,30.0,9.8781,9.8692,30.0]
[1672626436040,76.06,9.878,9.8692,30.0]
[1672626436246,30.0,9.8779,9.8694,30.0]
[1672626436457,30.0,9.8777,9.8694,30.0]
[1672626436686,76.07,9.8776,9.8696,30.0]
[1672626437001,30.0,9.8775,9.8698,30.0]
[1672626437210,76.07,9.8774,9.8698,30.0]
[1672626437418,76.07,9.8774,9.87,30.0]
[1672626437833,76.07,9.8774,9.8702,30.0]
[1672626438386,76.07,9.8774,9.8702,65.80730786]
[1672626441299,30.0,9.8773,9.8702,65.80730786]
[1672626441510,76.07,9.8772,9.8702,65.80730786]
[1672626441833,30.0,9.8771,9.8702,65.80730786]
[1672626443080,30.0,9.8775,9.8702,65.80730786]
[1672626443392,76.07,9.8774,9.8702,65.80730786]
[1672626443825,76.07,9.8774,9.8702,35.80730786]
[1672626444019,30.0,9.8773,9.8702,20.0]
[1672626444233,76.07,9.8772,9.8699,20.0]
[1672626444454,30.0,9.8771,9.8699,20.0]
[1672626444652,30.0,9.8769,9.87,30.0]
[1672626444875,76.07,9.8768,9.8701,20.0]
[1672626445193,76.07,9.8768,9.8702,30.0]
[1672626445401,76.07,9.8768,9.8702,50.0]
[1672626450136,30.0,9.8767,9.8702,65.80730786]
[1672626455588,30.0,9.8767,9.8702,35.80730786]
[1672626456003,30.0,9.8765,9.8702,35.80730786]
[1672626459161,30.0,9.8765,9.8702,101.79967479]
[1672626466633,30.0,9.8765,9.8702,35.80730786]
[1672626469167,30.0,9.8763,9.8702,35.80730786]
[1672626473783,30.0,9.8761,9.8702,20.0]
[1672626473979,76.08,9.876,9.8702,20.0]
[1672626474308,30.0,9.8759,9.8702,20.0]
[1672626474511,30.0,9.8757,9.8702,20.0]
[1672626475141,30.0,9.8755,9.8689,20.0]
[1672626475562,30.0,9.8755,9.869,30.0]
[1672626475790,30.0,9.8755,9.8691,20.0]
[1672626476421,30.0,9.8755,9.8689,20.0]
[1672626476736,30.0,9.8755,9.8692,15.80730786]
[1672626476943,30.0,9.8753,9.8693,20.0]
[1672626477348,30.0,9.8753,9.8694,15.80730786]
[1672626477872,30.0,9.8753,9.8695,20.0]
[1672626478196,30.0,9.8753,9.8696,15.80730786]
[1672626478413,30.0,9.8753,9.8697,20.0]
[1672626478832,30.0,9.8753,9.8698,15.80730786]
[1672626479357,30.0,9.8753,9.8699,20.0]
[1672626479785,30.0,9.8753,9.87,15.80730786]
[1672626480286,30.0,9.8753,9.8701,20.0]
[1672626482496,30.0,9.8753,9.8701,35.80730786]
[1672626482710,30.0,9.8753,9.8701,20.0]
[1672626482923,76.08,9.8752,9.8701,20.0]
[1672626483144,30.0,9.8751,9.869,20.0]
[1672626483354,76.09,9.875,9.8689,54.19223392]
[1672626483553,76.09,9.875,9.8601,30.0]
[1672626483766,30.0,9.8702,9.8602,20.0]
[1672626483980,30.0,9.8702,9.8603,50.0]
[1672626484183,30.0,9.8747,9.8605,30.0]
[1672626484395,47.5509,9.8701,9.8607,30.0]
[1672626484607,47.5509,9.8701,9.8608,52.74495257]
[1672626484835,47.5509,9.8701,9.8609,30.0]
[1672626485023,23.8256,9.87,9.8611,30.0]
[1672626485235,23.8256,9.87,9.8612,20.0]
[1672626485447,23.8256,9.87,9.8613,30.0]
[1672626485662,23.8256,9.8699,9.8615,30.0]
[1672626485978,23.8256,9.8699,9.8616,85.99236693]
[1672626486298,23.8256,9.8698,9.8617,95.99236693]
[1672626486512,23.8256,9.8698,9.8619,30.0]
[1672626486720,23.8256,9.8697,9.8621,30.0]
[1672626487247,23.8256,9.8697,9.8623,30.0]
[1672626487466,23.8256,9.8696,9.8625,30.0]
[1672626487868,23.8256,9.8696,9.8626,155.99190871]
[1672626488073,23.8256,9.8696,9.8627,30.0]
[1672626488290,23.8256,9.8696,9.8629,30.0]
[1672626488508,23.8256,9.8696,9.863,20.0]
[1672626488705,23.8256,9.8696,9.8631,30.0]
[1672626488928,23.8256,9.8696,9.8633,30.0]
[1672626489133,23.8256,9.8696,9.8634,20.0]
[1672626489349,23.8256,9.8696,9.8635,30.0]
[1672626489551,23.8256,9.8696,9.8635,150.18460085]
[1672626489884,23.8256,9.8696,9.8637,30.0]
[1672626490295,23.8256,9.8696,9.8639,30.0]
[1672626490513,23.8256,9.8696,9.8641,30.0]
[1672626490933,23.8256,9.8696,9.8643,30.0]
[1672626491146,23.8256,9.8696,9.8645,30.0]
[1672626491330,23.8256,9.8696,9.8646,20.0]
[1672626491545,23.8256,9.8696,9.8647,30.0]
[1672626491770,23.8256,9.8696,9.8649,30.0]
[1672626492187,23.8256,9.8696,9.865,15.80730786]
[1672626492506,23.8256,9.8696,9.8652,30.0]
[1672626492831,23.8256,9.8696,9.8654,30.0]
[1672626493227,23.8256,9.8696,9.8656,30.0]
[1672626493768,23.8256,9.8696,9.8658,30.0]
[1672626494293,76.11,9.8723,9.866,30.0]
[1672626494505,111.7333,9.8724,9.866,30.0]
[1672626494697,111.7333,9.8724,9.8661,35.80730786]
[1672626494906,23.0402,9.8762,9.8662,303.1]
[1672626495125,23.0402,9.8762,9.8663,20.0]
[1672626495126,76.08,9.8761,9.8663,20.0]
[1672626495334,76.08,9.8761,9.8664,30.0]
[1672626495554,76.08,9.8761,9.8664,111.79967479]
[1672626495762,76.08,9.8761,9.8665,215.80600059]
[1672626495962,76.08,9.8761,9.8665,297.60567538]
[1672626496169,76.08,9.8761,9.8666,173.09857538]
[1672626496382,76.08,9.8761,9.8667,20.0]
[1672626496585,76.08,9.8761,9.8668,30.0]
[1672626496805,76.08,9.8761,9.8669,20.0]
[1672626497006,76.08,9.8761,9.867,30.0]
[1672626497221,76.08,9.8761,9.8671,20.0]
[1672626497427,76.08,9.8761,9.8671,81.29890059]
[1672626497644,76.08,9.8761,9.8672,61.29890059]
[1672626497875,76.08,9.8761,9.8674,30.0]
[1672626498063,76.08,9.8761,9.8676,30.0]
[1672626498282,76.08,9.8761,9.8677,20.0]
[1672626498486,76.08,9.8761,9.8678,30.0]
[1672626498690,76.08,9.8761,9.8678,91.29890059]
[1672626498908,76.08,9.8761,9.868,30.0]
[1672626499334,76.08,9.8761,9.8682,30.0]
[1672626499547,76.08,9.8761,9.8683,20.0]
[1672626499757,76.08,9.8761,9.8684,30.0]
[1672626499949,76.08,9.8761,9.8685,20.0]
[1672626500161,76.08,9.8761,9.8685,35.80730786]
[1672626500486,76.08,9.8761,9.8686,107.10620845]
[1672626501019,23.0402,9.8762,9.8688,30.0]
[1672626501440,23.0402,9.8762,9.869,30.0]
[1672626501847,23.0402,9.8762,9.8692,30.0]
[1672626502065,23.0402,9.8762,9.8693,20.0]
[1672626504487,76.08,9.8761,9.8693,20.0]
[1672626504682,23.0402,9.8762,9.8694,15.80730786]
[1672626504890,23.0402,9.8762,9.8696,30.0]
[1672626505102,23.0402,9.8762,9.8697,20.0]
[1672626505320,23.0402,9.8762,9.8697,35.80730786]
[1672626505625,23.0402,9.8762,9.8698,15.80730786]
[1672626505836,23.0402,9.8762,9.8699,20.0]
[1672626506272,23.0402,9.8762,9.87,15.80730786]
[1672626506885,23.0402,9.8762,9.8701,20.0]
[1672626507109,23.0402,9.8762,9.8702,30.0]
[1672626507303,23.0402,9.8762,9.8704,30.0]
[1672626507736,23.0402,9.8762,9.8706,30.0]
[1672626508159,23.0402,9.8762,9.8708,30.0]
[1672626508371,23.0402,9.8762,9.8709,20.0]
[1672626508574,23.0402,9.8762,9.871,30.0]
[1672626508797,23.0402,9.8762,9.8711,20.0]
[1672626515620,23.0402,9.8762,9.8706,20.0]
[1672626516691,23.0402,9.8762,9.8707,15.80730786]
[1672626517008,23.0402,9.8762,9.8708,20.0]
[1672626522998,23.0402,9.8762,9.8709,81.79967479]
[1672626523206,23.0402,9.8762,9.8711,30.0]
[1672626523612,23.0402,9.8762,9.8712,158.17507389]
[1672626523933,76.02,9.8835,9.8713,135.00052752]
[1672626524140,1109.7446221,9.8898,9.8714,303.1]
[1672626524352,195.83,9.8898,9.8714,453.90783538]
[1672626524555,195.83,9.8898,9.8716,303.1]
[1672626524770,149.86,9.8897,9.8715,180.80783538]
[1672626524983,75.97,9.8896,9.8717,150.80783538]
[1672626525199,75.97,9.8896,9.8717,73.70162693]
[1672626525426,1030.37140489,9.8895,9.8718,328.21913479]
[1672626525732,30.0,9.8893,9.8719,120.54460146]
[1672626526053,75.98,9.8892,9.872,177.7067939]
[1672626526239,30.0,9.8891,9.8721,30.0]
[1672626526449,75.98,9.889,9.8721,187.7067939]
[1672626526683,30.0,9.8889,9.8723,30.0]
[1672626526989,30.0,9.8887,9.8725,30.0]
[1672626527201,30.0,9.8885,9.8724,185.45981067]
[1672626527400,75.98,9.8884,9.8726,184.57915578]
[1672626527614,30.0,9.8883,9.8727,30.0]
[1672626527829,30.0,9.8881,9.8727,120.54460146]
[1672626528028,75.99,9.888,9.8728,90.54460146]
[1672626528239,30.0,9.8879,9.8729,30.0]
[1672626528450,30.0,9.8877,9.8729,120.54460146]
[1672626528654,75.99,9.8876,9.873,90.54460146]
[1672626528870,30.0,9.8875,9.8731,30.0]
[1672626529101,30.0,9.8873,9.8731,120.54460146]
[1672626529314,75.99,9.8872,9.8732,110.54460146]